{"text_format":"2","workbook":"xlsx","n_sheets":1,"sheets":["Munka1"],"not_rendered":{"charts":0,"images":3,"macros":0,"external_links":0,"defined_names":0,"comments":0,"pivot_tables":0},"unopened":[],"bounds":{"document_bytes":16777216,"sheet_cells":100000,"run_cost":"one","rows_first":2000,"rows_last":500,"rows_between":2000,"halvings":0,"cell_chars":16384,"cell_head_chars":4096},"cells_cut":0,"cells_raw":0,"read":"whole","date_system":"1900"}

{"sheet":"Munka1","index":0,"n_rows":38,"n_cols":8,"rows_kept":38,"cut":false,"hidden":false,"merged":[[37,6,37,7]]}
[]
[]
[]
[]
[null,null,"Dóm tér 10. Élettani Intézet alagsor felújítás, elektromos"]
[]
["S.sz","Megnevezés","Menny.","Me","Anyag","Díj","Anyag Ö","Díj Ö"]
[]
[null,"Bontás"]
[]
[1,"Fenycsöves lámpatest bontása (alagsor)",2,"db",null,0,{"$f":"C11*E11","v":0},{"$f":"C11*F11","v":0}]
[2,"Mennyezeti lámpatest bontása",1,"db",null,0,0,0]
[3,"Dugalj tábla bonása (alagsor)",2,"db",null,0,0,0]
[4,"Biztosíték tábla bontása (alagsor)",1,"db",null,0,0,0]
[5,"Elosztó bontása (alagsor)",1,"db",null,0,0,0]
[6,"Meglévő vezetékek  elbontása.Kábelköteg bontása tartószerezetől, maj a felszerelt kábelcsatornába történő elhelyezése",1,"klt",null,0,0,0]
[]
[null,"Új szerelés"]
[]
[1,"DLP csatorna elhelyezése105X50 mm",20,"m",0,0,{"$f":"C20*E20","v":0},{"$f":"C20*F20","v":0}]
[2,"NYM 3x1,5 mm2 kábel MÜ tartószerkezetre",80,"m",0,0,0,0]
[3,"NYM 3x2,5 mm2 kábel tartószerkezetre szerelve",80,"m",0,0,0,0]
[4,"NYM 5x4 mm2 kábel tartószerkezetre szerelve",20,"m",0,0,0,0]
[5,"Mennyezeti lámpatest, víztiszta vagy prizma búrával, műanyag házas, kör alakú átm. 360mm, 2 db 10W-os E27 foglatú LED izzóval, HERCULES-RLP-360 (Papillon), vagy azzal műszakilag egyenértékú",1,"db",0,0,0,0]
[6,"Álmennyezetbe süllyeszthető lámpatest, V proflú tükörrel, 4db 10 W-os LED fénycsővel, 600x600 mm. COSMICA NC SA T8 418 EVG (Papillon) vagy azzal műszakilag egenértékű",2,"db",0,0,0,0]
[7,"Álmennyezetbe süllyeszthető lámpatest, V proflú tükörrel, 4db 10 W-os LED fénycsővel, 600x600 mm. COSMICA NC SA T8 418 EVG (Papillon) 1 órás, inverterrel vagy azzal műszakilag egenértékű.de INV csak hagyományos fcsővel",2,"db",0,0,0,0]
[8,"Kijárat mutató, mennyezeti jobbra/balra  mutató nyíllal, kétoldalas, 3 W LED fényforrás, 3 h áthidalási idővel. MLX JM-805 (Hunilux)  vagy azzal műszakilag egenértékű",2,"db",0,0,0,0]
[9,"Kijárat mutató, oldal fali jobbra ferdén lefele mutató nyíllal(lépcső jel), 3 W LED fényforrás, 3 h áthidalási idővel. SMART 44 (Hunilux)  vagy azzal műszakilag egenértékű",1,"db",0,0,0,0]
[10,"Új alagsori elosztó készítése elhelyezése, bekötése, helyszíni felmérés alapján.",1,"klt",0,0,0,0]
[11,"Alagsori kiselosztó 1 db 3 f 32 A dugalj és 2 db 1 f-ú dugalj részére",1,"klt",0,0,0,0]
[12,"3 fázisú 32 A-es dugalj",1,"db",0,0,0,0]
[13,"2.s + f dugalj",2,"db",0,0,0,0]
[14,"legrand valena váltó kapcsoló",2,"db",0,0,0,0]
[15,"A munka elvégzéséhez szükséges egyéb költségek,a helyszini bejáráson tapasztaltak szerint.",1,"klt",0,0,0,0]
[16,"Érintésvédelmi mérés jegyzőkönyv készítéssel",1,"klt",0,0,0,0]
[null,"ÖSSZESEN:",{"$nulls":4},{"$f":"SUM(G11:G35)","v":0},{"$f":"SUM(H10:H35)","v":0}]
[]
[{"$nulls":6},{"$f":"G36+H36","v":0}]